Cogmind - Beta 9.6 --- EXPLORER MODE // 2020.05.02 @ 04:45:50 // Winter2019/RPGLIKE Player: hemo Result: Destroyed by C-40 Crusher with Compactor Performance ------------- Evolutions (3) 1500 Regions Visited (8) 1600 Robots Destroyed (347) 1735 Value Destroyed (11986) 11986 Prototype IDs (26) 520 Alien Tech Used (0) 0 Bonus (1014) 1014 TOTAL SCORE: 18355 Bonus ------- High Alert Combat Kills 570 Follower Combat Kills 1136 Friendly Fire -692 Cogmind --------- Core Integrity 0/600 Matter 152/300 Energy 100/100 System Corruption 26% Temperature Cool (0) Movement Treading (160) Location -7/Waste Parts ------- > --- POWER (2) -------- (None) > --- PROPULSION (2) --- Heavy Treads > --- UTILITY (12) ----- (None) > --- WEAPON (2) ------- (None) > --- INVENTORY (4) ---- Light Neutrino Core High-capacity Battery (400) Large Matter Pod (150) Peak State ------------ > --- POWER ------------ Cooled Deuterium Engine Cooled Deuterium Engine > --- PROPULSION ------- Advanced Treads Advanced Treads > --- UTILITY ---------- High-capacity Battery Large Matter Pod Advanced Signal Interpreter Advanced Terrain Scanner Matter Filter Phase Shifter Medium Reactive Plating Reflective Plating Improved Shield Generator System Shield System Backup Module Long-range Tractor Beam > --- WEAPON ----------- Gauss Cannon Slug Cannon > --- INVENTORY -------- High-capacity Battery Large Matter Pod Heavy Missile Launcher Great Axe [Rating: 63] Favorites ----------- Power Cooled Ion Engine Engine Cooled Ion Engine Power Core Light Nuclear Core Propulsion Advanced Treads Treads Advanced Treads Utility High-capacity Battery Device Experimental Sensor Array Storage High-capacity Battery Processor Advanced Signal Interpreter Hackware System Shield Protection Hardened Heavy Armor Plating Weapon Slug Cannon Energy Gun Medium Laser Energy Cannon Advanced Beam Cannon Ballistic Gun Light Assault Rifle Ballistic Cannon Slug Cannon Launcher Heavy Missile Launcher Special Weapon Plasma Cutter Impact Weapon Maul Slashing Weapon Great Axe Build | -11 -10 -10 -9 -9 -8 -8 -7 -7 ------- Run | Scr Mat Min Mat Min Mat Sto Fac Was Slots Evolved 14 | 4 2 1 3 . 2 2 . . Power 1 | . . . . . . 1 . . Propulsion 1 | 1 . . . . . . . . Utility 11 | 2 2 1 3 . 2 1 . . Weapon 1 | 1 . . . . . . . . Parts Attached 124 | 8 16 3 19 3 34 12 22 7 Power 10 | 1 . . 2 . . 3 2 2 Engine 6 | 1 . . . . . 2 2 1 Core 4 | . . . 2 . . 1 . 1 Reactor . | . . . . . . . . . Propulsion 15 | 2 2 . 2 . 6 1 1 1 Treads 15 | 2 2 . 2 . 6 1 1 1 Leg . | . . . . . . . . . Wheel . | . . . . . . . . . Hover . | . . . . . . . . . Flight . | . . . . . . . . . Utility 56 | 3 10 2 7 1 16 2 15 . Device 21 | 1 2 2 2 . 7 1 6 . Storage 5 | . 3 . 1 . 1 . . . Processor 7 | . . . 1 . 5 . 1 . Hackware 5 | . . . 1 . 2 . 2 . Protection 18 | 2 5 . 2 1 1 1 6 . Artifact . | . . . . . . . . . Weapon 43 | 2 4 1 8 2 12 6 4 4 Energy Gun 4 | 1 1 1 1 . . . . . Energy Cannon 2 | . . . 2 . . . . . Ballistic Gun 4 | 1 2 . . . . 1 . . Ballistic Cannon 18 | . 1 . 3 2 6 3 2 1 Launcher 4 | . . . . . 3 . . 1 Special Weapon 1 | . . . . . 1 . . . Impact Weapon 3 | . . . 2 . . 1 . . Slashing Weapon 7 | . . . . . 2 1 2 2 Piercing Weapon . | . . . . . . . . . Special Melee Weapon . | . . . . . . . . . Unidentified Prototypes 5 | . . 1 1 . . 1 1 1 Parts Lost 10 | . . . . . . . . 10 Power 1 | . . . . . . . . 1 Propulsion . | . . . . . . . . . Utility 6 | . . . . . . . . 6 Weapon 3 | . . . . . . . . 3 Highest Loss Streak 4 | . . . . . . . . 4 Average Slot Usage (%) 93 | . 99 100 98 94 92 92 98 27 Engine 5 | . 10 9 1 . . 6 11 3 Core 2 | . . . 5 7 6 1 . . Treads 13 | . 21 18 15 14 12 11 11 3 Device 22 | . 11 17 21 21 19 23 30 8 Storage 18 | . 4 27 24 21 25 17 14 2 Processor 4 | . . . 4 7 6 6 5 1 Hackware 1 | . . . . 2 1 . 1 1 Protection 10 | . 28 9 7 6 6 10 10 1 Energy Gun 1 | . 9 5 . . . . . . Energy Cannon 1 | . . . 6 2 . . . . Ballistic Gun 1 | . 10 3 . . . . . . Ballistic Cannon 9 | . 1 9 7 11 12 11 10 1 Naked Turns 23 | . . . . . . . . 23 Heaviest Build 79 | 13 33 31 37 54 57 76 79 78 Greatest Support 70 | 40 40 40 46 46 46 45 44 70 Greatest Overweight (x) 13 | 2 3 . . 1 2 1 1 13 Average Overweight (x) . | . . . . . 1 1 1 . Largest Inventory Capacity 4 | 1 3 3 4 4 4 4 4 4 Average Capacity 3 | . 2 3 3 4 4 4 4 4 Most Carried 4 | . 3 3 4 4 4 4 4 4 Average Carried 3 | . 2 2 3 3 3 4 3 3 Final Capacity 4 | 1 3 3 4 4 4 4 4 4 Final Carried 4 | . 3 3 3 4 4 4 4 3 Class Distribution -------------------- 81% | Hacker-Skirmisher 14% | Hacker-Mutant 3% | Commander-Skirmisher Dominant Class ---------------- Hacker-Mutant | -10/Materials Hacker-Skirmisher | -10/Mines Hacker-Skirmisher | -9/Materials Hacker-Skirmisher | -9/Mines Hacker-Skirmisher | -8/Materials Hacker-Skirmisher | -8/Storage Hacker-Skirmisher | -7/Factory Hacker-Mutant | -7/Waste Resources | -11 -10 -10 -9 -9 -8 -8 -7 -7 ----------- Run | Scr Mat Min Mat Min Mat Sto Fac Was Matter Collected 7622 | 218 279 548 566 114 2300 872 2651 74 Remotely 3710 | . 72 171 . . 4 806 2651 6 Salvage Created 9014 | 94 629 315 1959 136 2080 1015 2786 . Parts 538 | 4 51 12 133 5 115 52 164 2 Haulers Intercepted 27 | . 2 . 6 . 6 6 7 . Recyclers Shooed 6 | . . . . . 1 2 3 . Parts Field Recycled . | . . . . . . . . . Retrieved Matter . | . . . . . . . . . Parts Self-Destructed . | . . . . . . . . . Prevented . | . . . . . . . . . Kills | -11 -10 -10 -9 -9 -8 -8 -7 -7 ------- Run | Scr Mat Min Mat Min Mat Sto Fac Was Combat Hostiles Destroyed 254 | . 17 13 43 6 68 21 81 5 Melee 1 | . . . . . 1 . . . Guns 22 | . 17 5 . . . . . . Cannons 215 | . . 7 43 6 65 20 73 1 AOE 16 | . . 1 . . 2 1 8 4 Classes Destroyed 18 | 2 5 1 2 . 5 . 2 1 Worker 13 | . 1 1 3 . 2 1 5 . Builder 11 | . . . . . 3 1 7 . Tunneler 3 | 1 . . . . . . 2 . Hauler 27 | . 2 . 6 . 6 6 7 . Recycler 10 | 1 1 . 3 . 2 . 3 . Mechanic 1 | . . . . . 1 . . . Operator 6 | . . . 1 . 3 1 1 . Drone 1 | . . . . . . . 1 . Watcher 18 | . 3 . 3 . 5 1 6 . Swarmer 21 | . 4 4 6 2 4 . 1 . Grunt 163 | . 13 6 27 3 48 16 50 . Brawler 2 | . . . . . 2 . . . Duelist 9 | . . . . . 2 1 6 . Sentry 35 | . . . 10 1 9 5 10 . Hunter 14 | . . . . . 3 1 10 . Programmer 5 | . . . . . . . 5 . Compactor 5 | . . . . . . . . 5 Assembled 3 | . . 3 . . . . . . Best Kill Streak 10 | 2 6 3 5 3 10 3 6 3 Combat Bots Only 9 | . 5 2 3 3 9 3 6 3 Max Kills in Single Turn 3 | 1 1 1 2 1 2 2 3 1 Gunslinging . | . . . . . . . . . Exploded 3 | . . 1 . . 2 1 3 1 Melee 1 | . . . . . 1 . . . Uniques/NPCs Destroyed . | . . . . . . . . . Combat | -11 -10 -10 -9 -9 -8 -8 -7 -7 -------- Run | Scr Mat Min Mat Min Mat Sto Fac Was Damage Taken 4458 | . 453 181 365 43 1262 169 961 1024 Core 2940 | . 265 117 237 26 751 88 604 852 Absorbed by Shields 1351 | . . . 105 19 536 76 438 177 Redirected to Core 2363 | . 203 110 198 21 677 82 534 538 Core Remaining (%) 95 | 100 . 85 . 97 . 100 . . Volleys Fired 746 | 17 82 34 97 9 166 64 238 39 Largest 2 | 1 2 2 2 2 2 2 2 2 Hottest 116 | 50 70 100 107 116 96 96 96 96 Shots Fired 1427 | 17 164 65 190 18 328 126 476 43 Gun 215 | 17 158 31 9 . . . . . Cannon 1190 | . 6 34 181 18 323 126 476 26 Launcher 21 | . . . . . 4 . . 17 Special 1 | . . . . . 1 . . . Kinetic 1190 | . 88 41 94 16 323 126 476 26 Thermal 214 | 17 76 24 94 2 1 . . . Explosive 21 | . . . . . 4 . . 17 Electromagnetic 2 | . . . 2 . . . . . Robot Hit Streak 55 | 7 29 22 55 18 28 12 35 19 Robot Miss Streak 3 | 1 2 2 1 . 3 2 2 3 Penetration Max 1 | . . . . . 1 1 1 . Secondary Targets . | . . . . . . . . . Shots Hit Robots 1068 | 15 111 50 150 13 250 88 350 41 Core Hits 475 | 3 45 22 65 6 117 38 162 17 Critical Hits 141 | . . . 13 2 49 19 56 2 Critical Kills 54 | . . . 7 1 18 3 24 1 Critical Parts Destroyed 81 | . . . 5 . 31 14 31 . Melee Attacks 20 | . . . 5 . 3 1 3 8 Impact 5 | . . . 5 . . . . . Slashing 15 | . . . . . 3 1 3 8 Piercing . | . . . . . . . . . Sneak Attacks . | . . . . . . . . . Combat Hostiles . | . . . . . . . . . Follow-up Attacks . | . . . . . . . . . Damage Inflicted 33831 | 188 1246 1013 3224 414 8111 2938 12733 3964 Guns 1959 | 188 1190 415 166 . . . . . Cannons 26313 | . 56 432 3050 407 7622 2891 11080 775 Explosions 5194 | . . 166 . . 361 . 1557 3110 Melee 137 | . . . . . 69 . . 68 Ramming 216 | . . . 8 7 47 47 96 11 Kinetic 24995 | . 476 502 1287 362 7622 2891 11080 775 Thermal 4713 | 188 770 511 1881 45 33 . 1285 . Explosive 3574 | . . . . . 297 . 167 3110 Electromagnetic 196 | . . . 48 . 43 . 105 . Impact . | . . . . . . . . . Slashing 137 | . . . . . 69 . . 68 Piercing . | . . . . . . . . . Highest Corruption 26 | . 1 1 . . 1 1 2 26 Average Corruption 2 | . 1 1 . . 1 1 1 15 Corruption Purged 6 | . . . . . . . 5 1 Effects 73 | . 3 3 . . 15 8 2 42 Message Errors 18 | . 2 . . . 5 5 1 5 Matter Fused 11 | . . . . . . . . 11 Heat Flow Errors 3 | . . . . . . . . 3 Energy Discharges 7 | . . 3 . . 1 1 1 1 Data Loss (minor) 12 | . 1 . . . 5 1 . 5 Data Loss (major) 2 | . . . . . . . . 2 Misfires 1 | . . . . . . . . 1 Misdirections 10 | . . . . . . . . 10 Targeting Errors 8 | . . . . . 4 1 . 3 Weapon Failures 1 | . . . . . . . . 1 Overload Shots . | . . . . . . . . . Overflow Damage 1007 | . . 14 45 50 99 8 755 36 Projectiles 648 | . . 12 45 50 76 8 457 . Explosions 359 | . . 2 . . 23 . 298 36 Melee . | . . . . . . . . . Knockbacks 166 | . 3 6 8 4 55 15 75 . Impact 2 | . . . . . . . 2 . Kinetic 155 | . 2 6 7 4 50 15 71 . Secondary 9 | . 1 . 1 . 5 . 2 . Self-Inflicted Damage 638 | . . . . . 27 . 89 522 Shots 24 | . . . . . 2 . 5 17 Rammed 50 | . . . 2 1 8 6 9 24 Targets Rammed 52 | . . . 2 1 9 6 10 24 Kicked . | . . . . . . . . . Crushed 2 | . . . . . 1 . 1 . Highest Temperature 192 | . 24 16 6 6 150 78 144 192 Average Temperature 28 | . 8 6 3 3 32 19 34 87 Received Heat Transfer 2225 | . 321 133 238 22 872 114 525 . Siege Activations . | . . . . . . . . . Robots Corrupted . | . . . . . . . . . Combat Hostiles . | . . . . . . . . . Parts Fried . | . . . . . . . . . Impact Corruptions . | . . . . . . . . . Robots Melted . | . . . . . . . . . Combat Hostiles . | . . . . . . . . . Parts Melted 6 | 1 3 . 2 . . . . . Heat Transferred 8069 | 555 2146 977 3330 74 87 . 900 . Parts Sabotaged . | . . . . . . . . . Parts Stolen . | . . . . . . . . . Parts Stripped . | . . . . . . . . . Power Chain Reactions 1 | . . . . . 1 . . . Missiles Intercepted . | . . . . . . . . . Alert | -11 -10 -10 -9 -9 -8 -8 -7 -7 ------- Run | Scr Mat Min Mat Min Mat Sto Fac Was Peak Influence 1020 | 10 270 155 365 124 446 664 1020 214 Average Influence 216 | 4 85 87 170 29 177 435 294 112 Maximum Alert Level 3 | . 1 . 1 . 2 2 3 1 Low Security (%) 56 | 100 85 100 56 100 56 5 47 94 Level 1 27 | . 14 . 43 . 40 30 25 5 Level 2 11 | . . . . . 3 64 15 . Level 3 3 | . . . . . . . 11 . Level 4 . | . . . . . . . . . Level 5 . | . . . . . . . . . High Security . | . . . . . . . . . Max Security . | . . . . . . . . . Squads Dispatched 84 | . 4 . 14 1 18 14 33 . Investigation 64 | . 4 . 12 1 13 14 20 . Extermination 6 | . . . . . . . 6 . Reinforcement 11 | . . . 2 . 4 . 5 . Assault 1 | . . . . . 1 . . . Garrison 2 | . . . . . . . 2 . Intercept . | . . . . . . . . . Construction Impeded 3 | . . . . . 2 . 1 . Haulers Reinforced 2 | . . . . . . . 2 . Stealth | -11 -10 -10 -9 -9 -8 -8 -7 -7 --------- Run | Scr Mat Min Mat Min Mat Sto Fac Was Distress Signals 13 | . 1 . 2 . 6 2 2 . Communications Jammed . | . . . . . . . . . Distress Signals . | . . . . . . . . . Times Spotted 328 | . 26 15 60 5 92 35 87 8 Peak Tracking Total 7 | . 5 3 4 2 6 5 7 4 Tactical Retreats 20 | . . 2 1 1 5 3 6 2 Traps | -11 -10 -10 -9 -9 -8 -8 -7 -7 ------- Run | Scr Mat Min Mat Min Mat Sto Fac Was Traps Triggered 13 | . 3 . . . . 1 9 . Indirectly . | . . . . . . . . . Trap Hack Attempts . | . . . . . . . . . Triggered . | . . . . . . . . . Disarmed . | . . . . . . . . . Reprogrammed 23 | . . . 8 . 6 9 . . Reused 8 | . . . 2 . 5 1 . . Traps Extracted . | . . . . . . . . . Installed . | . . . . . . . . . Triggered 8 | . . . 2 . 5 1 . . Machines | -11 -10 -10 -9 -9 -8 -8 -7 -7 ---------- Run | Scr Mat Min Mat Min Mat Sto Fac Was Machines Disabled 46 | . 1 2 . . 12 5 26 . Max in Single Turn 4 | . 1 2 . . 4 1 4 . Garrison Access 3 | . . . . . 1 . 2 . Machines Sabotaged 1 | . . . 1 . . . . . Garrisons Compromised . | . . . . . . . . . Overloaded Fab Kills . | . . . . . . . . . Fab Network Shutdowns 1 | . . . . . . . 1 . Hacking | -11 -10 -10 -9 -9 -8 -8 -7 -7 --------- Run | Scr Mat Min Mat Min Mat Sto Fac Was Machines Accessed 83 | . 10 1 14 1 15 18 24 . Terminals 55 | . 8 1 10 . 9 15 12 . Fabricators 4 | . . . . . . . 4 . Repair Stations 1 | . . . . . 1 . . . Recycling Units 11 | . 2 . 2 . 2 2 3 . Scanalyzers 6 | . . . 2 . 2 . 2 . Garrison Access 5 | . . . . . 1 1 3 . Total Hacks 363 | . 48 3 75 1 67 76 93 . Successful 259 | . 37 1 62 1 50 51 57 . Failed 104 | . 11 2 13 . 17 25 36 . Catastrophic 9 | . . . . . 2 . 7 . Database Lockouts . | . . . . . . . . . Manual 269 | . 41 3 55 . 47 61 62 . Terminals 270 | . 41 3 61 . 43 71 51 . Fabricators 14 | . . . . . . . 14 . Repair Stations 2 | . . . . . 2 . . . Recycling Units 31 | . 7 . 4 . 6 4 10 . Scanalyzers 30 | . . . 10 . 14 . 6 . Garrison Access 15 | . . . . . 2 1 12 . Terminal Hacks 122 | . 24 . 38 1 15 32 12 . Record 2 | . . . 2 . . . . . Part Schematic 18 | . 4 . 3 . 3 4 4 . Robot Schematic 5 | . 2 . . . 2 1 . . Robot Analysis 35 | . 13 . 7 . 8 . 7 . Prototype ID Bank 41 | . 4 . 21 . . 16 . . Open Door 5 | . . . . 1 . 4 . . Alert Level 1 | . . . . . . 1 . . Unreport Threat 1 | . . . . . . . 1 . Locate Traps 1 | . . . . . . 1 . . Reprogram Traps 8 | . . . 3 . 1 4 . . Transport Status 1 | . . . 1 . . . . . Hauler Manifests 4 | . 1 . 1 . 1 1 . . Fabricator Hacks 11 | . . . . . . . 11 . Network Status 1 | . . . . . . . 1 . Load Schematic 5 | . . . . . . . 5 . Build 5 | . . . . . . . 5 . Repair Station Hacks 2 | . . . . . 2 . . . Scan Component 1 | . . . . . 1 . . . Repair 1 | . . . . . 1 . . . Recycling Unit Hacks 14 | . 3 . 2 . 3 2 4 . Report Inventory 9 | . . . 2 . 2 2 3 . Retrieve Components 5 | . 3 . . . 1 . 1 . Scanalyzer 23 | . . . 7 . 12 . 4 . Insert Component 12 | . . . 4 . 6 . 2 . Analyze 11 | . . . 3 . 6 . 2 . Garrison Access Hacks 2 | . . . . . . . 2 . Seal Access 2 | . . . . . . . 2 . Unauthorized Hacks 85 | . 10 1 15 . 18 17 24 . Terminals 58 | . 8 1 11 . 12 14 12 . Assimilate 3 | . . . 1 . 1 . 1 . Botnet 48 | . 7 . 8 . 9 13 11 . Detonate 1 | . . 1 . . . . . . Disrupt 3 | . 1 . . . 2 . . . Operators 2 | . . . 1 . . 1 . . Sabotage 1 | . . . 1 . . . . . Fabricators 2 | . . . . . . . 2 . Siphon 2 | . . . . . . . 2 . Repair Stations . | . . . . . . . . . Recycling Units 11 | . 2 . 2 . 2 2 3 . Tunnel 11 | . 2 . 2 . 2 2 3 . Scanalyzers 6 | . . . 2 . 2 . 2 . Extract 6 | . . . 2 . 2 . 2 . Garrison Access 8 | . . . . . 2 1 5 . Redirect 1 | . . . . . 1 . . . Reprogram 7 | . . . . . 1 1 5 . Data Cores Recovered 1 | . . . . . . 1 . . Used 1 | . . . . . . 1 . . Hacking Detections 71 | . 9 1 12 . 13 14 22 . Full Trace Events 54 | . 8 1 9 . 9 13 14 . Feedback Events 1 | . . . . . 1 . . . Corruption 1 | . . . . . 1 . . . Feedback Blocked . | . . . . . . . . . Robot Schematics Acquired 5 | . 2 . . . 2 1 . . Robots Built . | . . . . . . . . . Matter . | . . . . . . . . . Time . | . . . . . . . . . Total Robot Build Rating . | . . . . . . . . . Part Schematics Acquired 38 | . 4 . 10 . 11 4 9 . Parts Built 8 | . . . . . . . 8 . Matter 708 | . . . . . . . 708 . Time 341 | . . . . . . . 341 . Total Part Build Rating 28 | . . . . . . . 28 . Parts Repaired 1 | . . . . . 1 . . . Time 100 | . . . . . 100 . . . Parts Recycled . | . . . . . . . . . Recycled Matter . | . . . . . . . . . Retrieved Matter . | . . . . . . . . . Retrieved Components 30 | . 14 . . . 10 . 6 . Parts Scanalyzed 11 | . . . 4 . 5 . 2 . Part Schematics Acquired 11 | . . . 3 . 6 . 2 . Parts Damaged 1 | . . . . . 1 . . . Bothacking | -11 -10 -10 -9 -9 -8 -8 -7 -7 ------------ Run | Scr Mat Min Mat Min Mat Sto Fac Was Used RIF Installer . | . . . . . . . . . Robots Hacked . | . . . . . . . . . Non-combat . | . . . . . . . . . Combat . | . . . . . . . . . Robot Hacks Applied . | . . . . . . . . . Relay Couplers Released 2 | . . . . . 2 . . . Machine Destruction 2 | . . . . . 2 . . . Robots Rewired . | . . . . . . . . . Allies Hacked . | . . . . . . . . . Hacks Repelled . | . . . . . . . . . Allies | -11 -10 -10 -9 -9 -8 -8 -7 -7 -------- Run | Scr Mat Min Mat Min Mat Sto Fac Was Total Allies 29 | . . 3 1 2 1 13 9 . Largest Group 10 | . . 3 3 2 2 10 5 . Highest-Rated Group 173 | . . 40 40 41 41 173 112 . Highest-Rated Ally 32 | . . 16 16 31 31 29 32 . Total Orders 31 | . . . 18 . 3 9 1 . STAY 5 | . . . 3 . . 2 . . GOTO 12 | . . . 8 . 2 1 1 . FOLLOW 14 | . . . 7 . 1 6 . . Ally Attacks 291 | . . . 64 13 4 130 80 . Total Damage 4382 | . . . 681 183 40 1795 1683 . Kills 52 | . . . 12 . 2 20 18 . Allies Corrupted . | . . . . . . . . . Allies Melted . | . . . . . . . . . Intel | -11 -10 -10 -9 -9 -8 -8 -7 -7 ------- Run | Scr Mat Min Mat Min Mat Sto Fac Was Robot Analysis Total 35 | . 13 . 7 . 8 . 7 . Derelict Logs Recovered 2 | . . 1 . 1 . . . . Drone Launches 16 | . . . . . . 16 . . Drone Recoveries . | . . . . . . . . . Exploration | -11 -10 -10 -9 -9 -8 -8 -7 -7 ------------- Run | Scr Mat Min Mat Min Mat Sto Fac Was Turns Passed 15841 | 116 1271 890 2432 490 3563 1488 4942 649 Spaces Moved 7675 | 42 591 491 1277 253 1577 719 2364 361 Core 250 | 6 1 . . . . . . 243 Treads 7425 | 36 590 491 1277 253 1577 719 2364 118 Legs . | . . . . . . . . . Wheels . | . . . . . . . . . Hover . | . . . . . . . . . Flight . | . . . . . . . . . Fastest Speed 50 | 50 160 160 160 160 172 165 165 50 Average Speed 163 | 153 160 160 160 171 174 165 165 128 Slowest Speed 700 | 160 200 160 160 180 185 172 165 700 Overloaded Moves . | . . . . . . . . . Propulsion Burnouts . | . . . . . . . . . Robots Hopped . | . . . . . . . . . Cave-ins Triggered . | . . . . . . . . . Exploration Rate (%) 79 | 4 91 82 93 88 95 90 72 96 Regions Visited 8 Branch Regions 3 Pre-discovered Areas 14 | . 2 1 2 1 2 3 3 . Known Exits Taken 7 | 1 1 1 1 1 1 1 . . Unknown Exits Taken . | . . . . . . . . . Scrap Searched 1 | . . 1 . . . . . . Spaces Dug 57 | . . . 4 . 44 2 2 5 Terrain Destroyed 536 | . . 29 4 2 197 25 157 122 Melee 12 | . . . 4 . 1 . 2 5 Projectile 157 | . . . . 2 72 25 58 . AOE 367 | . . 29 . . 124 . 97 117 Actions | -11 -10 -10 -9 -9 -8 -8 -7 -7 --------- Run | Scr Mat Min Mat Min Mat Sto Fac Was Total 9452 | 73 766 531 1468 292 2049 883 2920 470 Wait 499 | 7 36 . 11 20 162 46 197 20 Move 7668 | 41 590 490 1276 252 1576 718 2364 361 Hop . | . . . . . . . . . Pick Up 24 | . 5 . 5 1 9 . 4 . Fast Attach 68 | 8 14 2 6 2 12 7 14 3 Attach 12 | . . 1 3 . 5 . 1 2 Detach 17 | . 1 1 2 1 8 1 2 1 Swap 44 | . 2 . 10 1 17 5 7 2 Drop 68 | . 11 1 14 3 17 7 15 . Fire 746 | 17 82 34 97 9 166 64 238 39 Melee 20 | . . . 5 . 3 1 3 8 Ram . | . . . . . . . . . Kick . | . . . . . . . . . Crush 52 | . . . 2 1 9 6 10 24 Escape Stasis 8 | . . . . . . . 8 . Rewire 1 | . . . . . . 1 . . Trap . | . . . . . . . . . Miscellaneous 225 | . 25 2 37 2 65 27 57 10 Route ------- -11/Scrapyard -10/Materials (discovered 5 exits: *Mat x3 / *Min x2) -10/Mines (discovered 3 exits: *Mat x2 / Exi) -9/Materials (discovered 5 exits: *Mat x3 / *Min x2) -9/Mines (discovered 2 exits: *Mat x2) -8/Materials (discovered 4 exits: *Fac x3 / *Sto) -8/Storage (discovered 2 exits: *Fac / *Rec) -7/Factory (discovered 4 exits: *Fac x3 / *Low) -7/Waste (discovered 1 exit: *Fac) History --------- Turn | Location | Event 13 | -11/Scrapyard | Upgraded with Propulsion slot (x1) 13 | -11/Scrapyard | Upgraded with Utility slot (x2) 13 | -11/Scrapyard | Upgraded with Weapon slot (x1) 22 | -11/Scrapyard | Identified exit to Materials 22 | -11/Scrapyard | Discovered exit to Materials (range 15) 117 | -11/Scrapyard | Entered Materials 172 | -10/Materials | Upgraded with Utility slot (x1) 286 | -10/Materials | Identified exit to Mines 286 | -10/Materials | Discovered exit to Mines (range 16) 305 | -10/Materials | Build established: Hacker-Mutant 618 | -10/Materials | Identified exit to Materials 618 | -10/Materials | Discovered exit to Materials (range 15) 779 | -10/Materials | Reached level 2 935 | -10/Materials | Discovered exit to Materials (range 15) 1081 | -10/Materials | Upgraded with Utility slot (x1) 1123 | -10/Materials | Discovered exit to Materials (range 16) 1320 | -10/Materials | Discovered exit to Mines (range 15) 1388 | -10/Materials | Entered Mines 1390 | -10/Mines | Reached level 3 1394 | -10/Mines | Met a Derelict bent on vengeance 1400 | -10/Mines | Upgraded with Utility slot (x1) 1499 | -10/Mines | Found a damaged Exp. Sensor Array with a note attached 1503 | -10/Mines | Found Prototype Device 1503 | -10/Mines | Identified Exp. Sensor Array 1755 | -10/Mines | Learned location of Storage (-8) 1809 | -10/Mines | Assembled infested the area 1811 | -10/Mines | Build established: Hacker-Skirmisher 1827 | -10/Mines | Discovered exit to Materials (range 12) 1961 | -10/Mines | Learned Materials stockpile data 2259 | -10/Mines | Identified exit to Exiles 2259 | -10/Mines | Discovered exit to Exiles (range 14) 2262 | -10/Mines | Discovered exit to Materials (range 6) 2270 | -10/Mines | Assisted by bots powering up and referring to "LRC-V3" 2278 | -10/Mines | Entered Materials 2278 | -9/Materials | Accompanied by 3 allies 2280 | -9/Materials | Reached level 4 2280 | -9/Materials | Reached level 5 2457 | -9/Materials | Identified exit to Mines 2457 | -9/Materials | Discovered exit to Mines (range 16) 2544 | -9/Materials | Reached level 6 2575 | -9/Materials | Upgraded with Utility slot (x2) 2868 | -9/Materials | Reached level 7 3220 | -9/Materials | Identified exit to Materials 3220 | -9/Materials | Discovered exit to Materials (range 16) 3516 | -9/Materials | Reached level 8 3550 | -9/Materials | Discovered exit to Mines (range 16) 4113 | -9/Materials | Discovered exit to Materials (range 15) 4193 | -9/Materials | Reached level 9 4199 | -9/Materials | Upgraded with Utility slot (x1) 4471 | -9/Materials | Discovered exit to Materials (range 11) 4710 | -9/Materials | Entered Mines 4715 | -9/Mines | A weapon hastily lodged in a ceiling crevice suddenly fell to the ground 4806 | -9/Mines | Joined a pair of Derelicts in attacking an 0b10 outpost 4881 | -9/Mines | Met a Derelict shopkeep closing up shop 5023 | -9/Mines | Discovered exit to Materials (range 9) 5043 | -9/Mines | Discovered exit to Materials (range 15) 5200 | -9/Mines | Entered Materials 5200 | -8/Materials | Accompanied by 2 allies 5202 | -8/Materials | Reached level 10 5205 | -8/Materials | Led the pair of lost Derelicts to an unsafe place 5316 | -8/Materials | Reached level 11 5351 | -8/Materials | Identified exit to Factory 5351 | -8/Materials | Discovered exit to Factory (range 16) 5487 | -8/Materials | Upgraded with Utility slot (x1) 5710 | -8/Materials | Discovered exit to Factory (range 11) 5888 | -8/Materials | Reached level 12 6369 | -8/Materials | Destroyed 9 combat bots 6725 | -8/Materials | Repaired Broken Exp. Sensor Array 7155 | -8/Materials | Reached level 13 7334 | -8/Materials | Upgraded with Utility slot (x1) 7397 | -8/Materials | Discovered exit to Factory (range 18) 8325 | -8/Materials | Identified exit to Storage 8325 | -8/Materials | Discovered exit to Storage (range 13) 8471 | -8/Materials | Reached level 14 8763 | -8/Materials | Entered Storage 8775 | -8/Storage | Assisted by bots powering up and referring to "LRC-V3" 9060 | -8/Storage | Build established: Commander-Skirmisher 9349 | -8/Storage | Learned location of Armory (-3) 9530 | -8/Storage | Upgraded with Power slot (x1) 9581 | -8/Storage | Build established: Hacker-Skirmisher 9604 | -8/Storage | Discovered exit to Factory (range 17) 9735 | -8/Storage | Reached level 15 9866 | -8/Storage | Identified exit to Recycling 9866 | -8/Storage | Discovered exit to Recycling (range 13) 9911 | -8/Storage | Used back door to open Recycling access 9966 | -8/Storage | Upgraded with Utility slot (x1) 10251 | -8/Storage | Entered Factory 10251 | -7/Factory | Accompanied by 14 allies 10526 | -7/Factory | Reached level 16 11201 | -7/Factory | Fabricated Reactive Plating (x2) 11242 | -7/Factory | Fabricated System Backup Module (x2) 11449 | -7/Factory | Fabricated Reflective Plating? 11534 | -7/Factory | Fabricated Imp. Shield Generator? 11758 | -7/Factory | Identified exit to Lower Caves 11758 | -7/Factory | Discovered exit to Lower Caves (range 20) 11927 | -7/Factory | Identified exit to Factory 11927 | -7/Factory | Discovered exit to Factory (range 12) 12534 | -7/Factory | Reached level 17 13403 | -7/Factory | Discovered exit to Factory (range 20) 13534 | -7/Factory | Garrison activated, responded to threat 14079 | -7/Factory | Core integrity fell below 50% 14249 | -7/Factory | Reached level 18 14386 | -7/Factory | Fabricated Imp. Focal Shield? 14595 | -7/Factory | Local fabrication network quarantined 14934 | -7/Factory | Discovered exit to Factory (range 20) 15193 | -7/Factory | Sucked down chute 15193 | -7/Factory | Entered Waste 15208 | -7/Waste | EMP discharged 15243 | -7/Waste | Spotted C-40 Crusher 15266 | -7/Waste | Spotted C-40 Crusher 15266 | -7/Waste | Spotted C-40 Crusher 15266 | -7/Waste | Spotted C-40 Crusher 15269 | -7/Waste | Crushed by Compactor (1 part destroyed, 1 dropped) 15272 | -7/Waste | Destroyed C-40 Crusher 15295 | -7/Waste | Crushed by Compactor (1 part destroyed, 2 dropped) 15304 | -7/Waste | Destroyed C-40 Crusher 15308 | -7/Waste | EMP discharged 15308 | -7/Waste | System corruption reached 10% 15309 | -7/Waste | Crushed by Compactor (1 part destroyed, 1 dropped) 15312 | -7/Waste | Destroyed C-40 Crusher 15319 | -7/Waste | Crushed by Compactor (1 part destroyed, 1 dropped) 15321 | -7/Waste | Destroyed C-40 Crusher 15350 | -7/Waste | Lost 4 parts (3u1w) 15366 | -7/Waste | Spotted C-40 Crusher 15401 | -7/Waste | Crushed by Compactor (1 part destroyed, 1 dropped) 15404 | -7/Waste | Crushed by Compactor (1 part destroyed, 1 dropped) 15407 | -7/Waste | Crushed by Compactor (1 part destroyed, 2 dropped) 15408 | -7/Waste | EMP discharged 15410 | -7/Waste | Crushed by Compactor (1 part destroyed, 2 dropped) 15441 | -7/Waste | Lost 4 parts (1p3u) 15508 | -7/Waste | EMP discharged 15526 | -7/Waste | Spotted C-40 Crusher 15551 | -7/Waste | Build established: Hacker-Mutant 15608 | -7/Waste | EMP discharged 15630 | -7/Waste | Crushed by Compactor (1 part destroyed) 15637 | -7/Waste | Identified exit to Factory 15637 | -7/Waste | Discovered exit to Factory (range 10) 15643 | -7/Waste | Destroyed C-40 Crusher 15673 | -7/Waste | Crushed by Compactor (1 part destroyed) 15708 | -7/Waste | EMP discharged 15808 | -7/Waste | EMP discharged 15828 | -7/Waste | Core integrity fell below 20% 15842 | -7/Waste | Destroyed by C-40 Crusher with Compactor Last Messages --------------- 15651_ Antimatter Reactor crushed. 15651_ Protomatter-97 crushed. 15665_ Slug penetrates C-40 Crusher. 15667_ System corrupted: Matter fused (-7). 15673_ Gauss Cannon crushed. 15684_ Acquired Hvy. Treads. 15685_ System corrupted: Component data lost. 15698_ ALERT: Foreign system detected. Charging EMP. 15708_ System corrupted (+3). 15710_ DDQX K%AP 9|EL9Q<5P|R 15728_ System corrupted: Matter fused (-10). 15749_ /9LMAA#PHK#WRONFN8Y6R5MPAMR0H5:GRN35XD 15765_ System corrupted: Matter fused (-6). 15788_ System corrupted: Component data lost. 15798_ ALERT: Foreign system detected. Charging EMP. 15801_ Slammed into C-40 Crusher. 15808_ System corrupted (+3). 15809_ Slammed into C-40 Crusher. 15811_ System corrupted: Matter fused (-6). 15812_ Slammed into C-40 Crusher. Map ----- +----------------------------------------------------+ | ???????????????#####?#????????#??????????????????? | | ????????????#??#?#??#?#?###?#????????????????????? | | ???????????#????#?#################???##?????????? | | ?????????#?##?####?################???# ##???????? | | ???????#?###?###########################"###?????? | | ???#?????########################## #?????? | | ??#??#????######################### #?????? | | ###??##########?################### #?????? | | ??????#?########################### #?????? | | ???#??############################# #?????? | | ?????#?############################ #?????? | | ????#??##?######################### #?????# | | ????############################### #????## | | #????#################### ######## ###????# | | #?###?################### ######## ##?????# | | ??#?####### #### ######## ###????# | | ?#??####### #### ######## ###????# | | #??######## #### ######## ###?#??# | | #???#?##### ####### ####???# | | ?########## ####### ####???# | | ????####### ####### #####??# | | #??######## ####### ######?# | | ?#??#?##### ### ######## ######## | | ?#??####### ## ####### ######## | | #??######## # # ####### ######## | | ??#?################## @CC # ###### ######## | | ??#??################ # CC ###### ######## | | ?#??################# # ###### ######## | | ????################# # ###### ######## | | #????################# ## #### ######## | | ????#?################# ## #### ######## | | ????##################### # #### ######## | | ?#?#?################# # # # ######## | | ?????#?################ # ## ######## | | ??????################# # ## ## # ######## | | ?????#?################# ## ######## | | ????????############### | | ?????????############## | | ?????????############## | | ?????????############## | | ??????????############### # ######## | | ???????????############## # # ### ######## | | ??????????############### ######## ######## | | ???????????############## ######## ####??## | | ???????????############## ######## ######## | | ??????????????######### ################### | | ?????????????#?######## ################### | | ????????????####?###### #############?##### | | ??????????????######### ############?##?### | | ????????????????#?##### #############?###?? | +----------------------------------------------------+ Best States ------------- Heat Dissipation 49 Energy Generation 31 Energy Capacity 1320 Matter Stores 600 Matter Capacity 600 Sight Range 20 Robot Scan Range 58 Terrain Scan Range 20 Terrain Scan Density 510 Armor Coverage 750 Resistance: KI 65 Resistance: TH 45 Resistance: EX 35 Resistance: EM 35 Resistance: I 35 Resistance: S 35 Resistance: P 35 Propulsion Shielding 33 Weapon Shielding 33 Phase Shifting 5 Evasion (%) 50 Recoil Reduction 2 Matter Filtering 30 Offensive Hacking 30 Defensive Hacking 10 Item Schematics ----------------- Hcp. Battery | -10/Materials | Hacked Hcp. Matter Pod | -10/Materials | Hacked ECM Suite | -10/Materials | Hacked Tractor Beam | -10/Materials | Hacked Lrg. Matter Pod | -9/Materials | Scanalyzed Maul | -9/Materials | Scanalyzed Imp. Targeting Computer | -9/Materials | Extracted Plasma Cutter | -9/Materials | Scanalyzed Heat Sink | -9/Materials | Extracted Aluminum Leg | -9/Materials | Extracted Hvy. Ion Engine | -9/Materials | Extracted Shield Generator | -9/Materials | Hacked Imp. Terrain Scanner | -9/Materials | Hacked Imp. Signal Interpreter | -9/Materials | Hacked Exp. Sensor Array | -8/Materials | Scanalyzed Hrd. Heavy Armor Plating | -8/Materials | Scanalyzed Imp. Treads | -8/Materials | Scanalyzed System Shield | -8/Materials | Extracted Insulated Plating | -8/Materials | Hacked Reactive Plating | -8/Materials | Hacked Reflective Plating | -8/Materials | Hacked Axe | -8/Materials | Scanalyzed Lrn. Tractor Beam | -8/Materials | Scanalyzed Adv. Terrain Scanner | -8/Materials | Scanalyzed Adv. Beam Rifle | -8/Materials | Extracted EM Shield | -8/Storage | Hacked System Backup Module | -8/Storage | Hacked Shock Absorption System | -8/Storage | Hacked Adv. Signal Interpreter | -8/Storage | Hacked Imp. Shield Generator | -7/Factory | Hacked Imp. Focal Shield | -7/Factory | Hacked Arm. Medium Treads | -7/Factory | Hacked Thermal Shield | -7/Factory | Hacked Great Axe | -7/Factory | Scanalyzed Hvy. Missile Launcher | -7/Factory | Scanalyzed Imp. Terrain Scan Processor | -7/Factory | Extracted Hvy. Ion Cannon | -7/Factory | Extracted Enh. Optical Array | -7/Factory | Extracted Robot Schematics ------------------ O-16 Technician | -10/Materials | Hacked M-13 Machinist | -10/Materials | Hacked O-24 Administrator | -8/Materials | Hacked M-28 Smith | -8/Materials | Hacked D-53 Grenadier | -8/Storage | Hacked Fabricated ------------ Reactive Plating | x2 | -7/Factory System Backup Module | x2 | -7/Factory Reflective Plating | x2 | -7/Factory Imp. Shield Generator | x2 | -7/Factory | Preloaded Alien Tech Used ----------------- None Achievements -------------- None Challenges ------------ None RPGLIKE | -11 -10 -10 -9 -9 -8 -8 -7 -7 --------- Run | Scr Mat Min Mat Min Mat Sto Fac Was Levels Raised 17 | . 1 1 6 . 5 1 3 . XP Earned 32003 | 6000 2525 1780 8581 583 6209 1678 4615 32 XP Spent 29945 | 2670 4600 1700 7900 . 6100 4000 2975 . Upgrades 41 | 7 11 1 4 . 2 2 14 . Power Slot 1 | . . . . . . 1 . . Propulsion Slot 1 | 1 . . . . . . . . Utility Slot 11 | 2 2 1 3 . 2 1 . . Weapon Slot 1 | 1 . . . . . . . . Heat Dissipation 4 | 2 2 . . . . . . . Inventory Capacity 4 | 1 2 . 1 . . . . . Sensor Range 14 | . . . . . . . 14 . Terrain Scan Density 5 | . 5 . . . . . . . Protomatter Created 3175 | . 262 9 606 42 802 230 738 486 Integrity Restored 3737 | . 452 27 553 23 1258 190 1003 231 Core 2319 | . 265 27 327 13 764 88 604 231 Parts 1418 | . 187 . 226 10 494 102 399 . Protomatter Decayed 2520 | . 106 37 662 33 423 748 511 . Game ------ Seed FieldNodeSplitter Manual? 1 Play Time 02:33:49 Cumulative 378.3 hours Start 2020.05.02 @ 01:22:51 End 2020.05.02 @ 04:45:50 Sessions 5 Manual Loads 0 Difficulty Explorer Special Mode Winter2019/RPGLIKE Game No. 43 Rogue 1 Adventurer 3 Explorer 39 Win Type - Total 18 Types 18/0/0/0/0/0/0 Lore% 71 Gallery% 87 Achievement% 85 Wizard Run 0 Options --------- ASCII 0 Keyboard 1 Movement Vi Keybinds 0 Fullscreen 2 Font 24/Terminus Map View 76x50 Tactical HUD 1 Map Filters NONE Filters NONE Steam 1 RUN: 8b6651e9-b49f-4bec-b3d8-c9348aa439c4